bitfinex/quotes_SOLUSD_20240813
["timestamp","ask_amount","ask_price","bid_price","bid_amount"]
[1723528133353,1.65626005,145.97,145.94,17.1291]
[1723528133738,1.65626005,145.97,145.94,23.981]
[1723528134140,1.65626005,145.97,145.95,6.8515]
[1723528134352,12.66,145.98,145.95,6.8515]
[1723528134743,12.66,146.0,145.96,6.851]
[1723528135060,12.66,146.0,145.98,6.8501]
[1723528136232,28.9386,146.02,145.98,6.8501]
[1723528136436,28.9386,146.02,145.99,6.8496]
[1723528137240,16.2786,146.02,145.99,6.8496]
[1723528137448,28.9386,146.02,145.99,6.8496]
[1723528139840,16.2786,146.02,145.99,6.8496]
[1723528140154,16.2786,146.02,145.98,23.9751]
[1723528141144,16.2786,146.02,145.99,6.8496]
[1723528141465,12.66,146.03,146.0,6.8491]
[1723528141682,20.0,146.02,146.0,6.8491]
[1723528141842,20.0,146.02,145.99,6.8496]
[1723528143443,20.0,146.02,146.0,6.8492]
[1723528143649,20.0,146.03,146.0,6.8492]
[1723528145288,12.66,146.02,145.98,17.125]
[1723528146389,19.5087,146.02,145.98,17.125]
[1723528146566,6.8488,146.01,145.96,6.851]
[1723528147088,8.50506005,146.01,145.96,6.851]
[1723528147489,8.50506005,146.01,145.97,6.8505]
[1723528148078,19.5093,146.0,145.96,6.8511]
[1723528148274,12.66,145.98,145.95,17.1289]
[1723528148673,12.66,145.98,145.95,23.9805]
[1723528149287,12.66,145.98,145.96,6.8507]
[1723528149463,28.2399,146.0,145.95,17.1289]
[1723528149771,19.5085,146.02,145.96,0.25098]
[1723528150179,20.0,146.01,145.97,6.8505]
[1723528153096,26.8488,146.01,145.96,6.97649]
[1723528153291,20.0,146.01,145.96,6.851]
[1723528154795,6.8494,146.0,145.96,6.851]
[1723528155882,6.8484,146.02,145.98,6.8501]
[1723528156081,19.5084,146.02,145.98,6.8501]
[1723528157790,6.8479,146.03,145.99,6.8496]
[1723528158101,20.0,146.02,145.99,6.8496]
[1723528158491,20.0,146.02,146.0,6.8492]
[1723528158878,20.0,146.03,146.0,6.8492]
[1723528159180,20.0,146.03,145.99,6.8496]
[1723528159379,20.0,146.03,146.0,6.8492]
[1723528159609,20.0,146.03,145.99,6.8496]
[1723528159923,1.65626005,146.02,145.98,0.12549]
[1723528160122,32.66,146.03,145.98,0.12549]
[1723528160293,1.65626005,146.02,145.98,0.12549]
[1723528160492,6.8487,146.02,145.98,0.12549]
[1723528160711,6.8487,146.02,145.98,6.97559]
[1723528161030,20.0,146.03,146.0,6.8492]
[1723528161721,28.9528,146.04,146.0,6.8492]
[1723528163339,12.66,146.06,146.02,6.8482]
[1723528163492,20.0,146.05,146.02,6.8482]
[1723528164716,20.0,146.05,146.01,23.9702]
[1723528164901,26.8471,146.05,146.01,23.9702]
[1723528166391,20.0,146.05,146.01,23.9702]
[1723528166918,12.66,146.04,145.98,17.1251]
[1723528167131,12.66,146.02,145.97,6.8506]
[1723528167639,19.5084,146.02,145.97,6.8506]
[1723528168230,12.66,146.04,145.99,6.8497]
[1723528168405,20.0,146.03,145.99,6.8497]
[1723528168607,20.0,146.05,145.99,17.1238]
[1723528168840,16.0381,146.08,145.99,17.1238]
[1723528168841,12.66,146.06,146.03,6.8474]
[1723528169037,12.66,146.06,146.04,6.8473]
[1723528169612,12.66,146.06,146.03,6.8477]
[1723528170870,22.8837,146.08,146.04,6.8474]
[1723528170871,28.6981,146.08,146.04,6.8474]
[1723528171012,20.0,146.07,146.04,6.8474]
[1723528172044,28.6981,146.08,146.04,6.8474]
[1723528174335,12.66,146.08,146.05,6.8469]
[1723528174557,19.5046,146.1,146.05,8.21626626]
[1723528174751,35.8698,146.12,146.07,6.8459]
[1723528177251,20.0,146.11,146.07,6.8459]
[1723528177646,20.0,146.11,146.08,6.8455]
[1723528178734,12.66,146.12,146.09,6.8448]
[1723528179044,6.8432,146.13,146.09,6.8448]
[1723528179242,20.0,146.12,146.09,6.8448]
[1723528179831,20.02644441,146.16,146.11,6.8441]
[1723528179832,19.5019,146.16,146.11,6.8441]
[1723528180043,19.5019,146.16,146.1,1.61986102]
[1723528180044,6.8424,146.15,146.1,6.96999]
[1723528180248,6.8424,146.15,146.1,6.8445]
[1723528180448,6.8428,146.14,146.09,23.9569]
[1723528180831,19.5022,146.16,146.1,7.92623481]
[1723528181161,19.5022,146.16,146.11,8.21279445]
[1723528181348,20.0,146.15,146.11,8.21279445]
[1723528182243,20.0,146.15,146.11,6.8441]
[1723528182645,15.6499,146.19,146.12,1.49418223]
[1723528182867,6.8418,146.16,146.12,6.8432]
[1723528183075,19.5018,146.16,146.12,6.8432]
[1723528183279,19.5018,146.16,146.11,30.5886]
[1723528183580,19.0018,146.16,146.11,30.5886]
[1723528184172,6.8423,146.15,146.11,23.7446]
[1723528184343,6.8423,146.15,146.11,17.1096]
[1723528184540,19.5019,146.16,146.11,23.9536]
[1723528185148,6.8423,146.15,146.11,23.9536]
[1723528185577,19.5019,146.16,146.11,23.9536]
[1723528186076,19.5019,146.16,146.12,6.8436]
[1723528186372,19.5019,146.16,146.11,23.9537]
[1723528186953,19.5019,146.16,146.12,6.8436]
[1723528188861,12.66,146.16,146.12,6.8436]
[1723528189869,6.8412,146.18,146.13,6.843]
[1723528190166,15.6499,146.19,146.12,6.8436]
[1723528190167,39.5014,146.17,146.12,6.8436]
[1723528190373,12.66,146.15,146.11,23.9536]
[1723528191051,6.8418,146.16,146.11,23.9536]
[1723528191247,19.5018,146.16,146.12,6.8435]
[1723528193273,20.0,146.17,146.13,6.843]
[1723528193523,12.66,146.17,146.13,6.843]
[1723528193684,20.0,146.16,146.13,6.843]
[1723528196376,26.8421,146.16,146.11,17.23509]
[1723528196580,26.8421,146.16,146.11,17.1096]
[1723528196760,20.0,146.16,146.11,17.1096]
[1723528197254,6.8419,146.16,146.12,6.8435]
[1723528197754,19.5013,146.17,146.12,6.8435]
[1723528197970,20.0,146.16,146.13,6.843]
[1723528198180,12.66,146.17,146.14,6.8426]
[1723528198398,12.66,146.17,146.13,6.8431]
[1723528199779,6.8409,146.18,146.13,6.8431]
[1723528199975,32.66,146.17,146.13,6.8431]
[1723528200281,39.5015,146.17,146.13,6.8431]
[1723528200478,12.66,146.15,146.12,6.8435]
[1723528200681,19.5022,146.15,146.11,23.9537]
[1723528200886,12.66,146.15,146.11,23.9537]
[1723528201081,39.5013,146.17,146.11,17.1096]
[1723528201791,6.8418,146.16,146.12,6.8435]
[1723528201998,12.66,146.15,146.11,23.9536]
[1723528202374,12.66,146.15,146.12,6.8435]
[1723528204299,26.8414,146.17,146.08,23.9588]
[1723528204300,19.5033,146.13,146.08,23.9588]
[1723528204504,19.5033,146.13,146.09,6.845]
[1723528204716,1.65626005,146.12,146.09,6.845]
[1723528205386,1.65626005,146.12,146.08,17.1134]
[1723528205387,12.66,146.13,146.1,6.8444]
[1723528205985,20.0,146.17,146.12,6.8436]
[1723528206201,12.66,146.16,146.08,0.12549]
[1723528206402,20.0,146.15,146.13,6.8431]
[1723528206605,20.0,146.15,146.12,17.1083]
[1723528208818,19.5027,146.14,146.09,23.957]
[1723528209493,12.66,146.14,146.1,6.8445]
[1723528211704,19.5027,146.14,146.1,6.8445]
[1723528212378,19.5027,146.14,146.09,17.1123]
[1723528212603,12.66,146.12,146.09,23.9573]
[1723528214593,12.66,146.12,146.1,6.8445]
[1723528215515,12.66,146.14,146.11,6.844]
[1723528216497,12.66,146.14,146.09,17.1123]
[1723528216498,12.66,146.12,146.09,17.1123]
[1723528217112,12.66,146.12,146.09,23.9573]
[1723528217694,6.8429,146.14,146.09,23.9573]
[1723528217907,12.66,146.12,146.09,23.9573]
[1723528219021,12.66,146.12,146.08,6.8454]
[1723528219945,19.5038,146.12,146.08,6.8454]
[1723528220717,12.66,146.12,146.08,6.8454]
[1723528221868,6.8444,146.11,146.06,23.9619]
[1723528222155,19.5038,146.12,146.07,6.8456]
[1723528222746,12.66,146.1,146.06,17.1158]
[1723528222930,12.66,146.08,146.05,6.8466]
[1723528227738,6.8447,146.1,146.05,6.8466]
[1723528227945,32.66,146.09,146.06,6.8462]
[1723528228759,20.0,146.09,146.06,6.8462]
[1723528229056,39.5046,146.1,146.05,23.9636]
[1723528229857,12.66,146.08,146.05,17.1168]
[1723528230964,32.66,146.1,146.05,17.1168]
[1723528231150,12.66,146.1,146.05,17.1168]
[1723528231332,20.0,146.09,146.06,6.8461]
[1723528234156,20.0,146.09,146.05,23.9636]
[1723528237946,26.8452,146.09,146.05,23.9636]
[1723528238159,6.8455,146.08,146.05,17.1168]
[1723528238334,19.5055,146.08,146.05,17.1168]
[1723528238853,19.5055,146.08,146.04,6.8474]
[1723528240258,12.66,146.08,146.05,6.8469]
[1723528240461,6.8441,146.12,146.06,17.1156]
[1723528240643,20.0,146.11,146.07,6.8459]
[1723528241955,12.66,146.1,146.02,17.1199]
[1723528242161,12.66,146.1,146.03,0.50196]
[1723528242961,6.8454,146.09,146.05,6.8469]
[1723528243259,19.5047,146.1,146.05,6.8469]
[1723528243960,19.5047,146.1,146.06,6.8463]
[1723528244155,12.66,146.1,146.06,6.8463]
[1723528244353,12.66,146.1,146.07,6.846]
[1723528245949,20.0,146.11,146.07,6.846]
[1723528246269,20.0,146.11,146.07,1.36914442]
[1723528246635,20.0,146.11,146.09,6.845]
[1723528247562,12.66,146.12,146.09,6.845]
[1723528248065,12.66,146.12,146.08,23.9586]
[1723528249469,12.66,146.12,146.08,17.1132]
[1723528249646,35.7871,146.14,146.09,6.8447]
[1723528249964,20.0,146.13,146.09,6.8447]
[1723528250336,16.284,146.14,146.1,6.8443]
[1723528250535,28.944,146.14,146.1,6.8443]
[1723528253445,12.66,146.14,146.1,6.8443]
[1723528255060,19.5028,146.14,146.1,6.8443]
[1723528255365,12.66,146.14,146.1,6.8443]
[1723528257275,19.5029,146.14,146.1,6.8443]
[1723528257477,19.5029,146.14,146.09,6.8449]
[1723528258375,1.65626005,146.13,146.09,6.8449]
[1723528258986,19.5029,146.14,146.09,6.8449]
[1723528260068,12.66,146.12,146.08,17.1132]
[1723528260378,1.65626005,146.11,146.08,17.1132]
[1723528260581,19.5039,146.12,146.08,17.1132]
[1723528261488,12.66,146.12,146.08,23.9586]
[1723528263184,12.66,146.12,146.09,6.8449]
[1723528265563,12.66,146.12,146.1,6.8446]
[1723528265765,12.66,146.14,146.11,6.8441]
[1723528270396,15.4222,146.17,146.12,17.23409]
[1723528270581,15.4222,146.17,146.12,24.07729]
[1723528270899,15.4222,146.17,146.08,12.66]
[1723528270900,12.66,146.16,146.11,6.844]
[1723528271097,12.66,146.14,146.1,6.8445]
[1723528273277,12.66,146.12,146.09,17.1121]
[1723528273800,12.66,146.12,146.09,23.9571]
[1723528274708,20.0,146.13,146.1,6.8444]
[1723528274910,12.66,146.14,146.11,6.844]
[1723528276707,12.66,146.14,146.1,6.8445]
[1723528277906,12.66,146.14,146.11,6.8439]
[1723528278381,12.66,146.14,146.09,17.1121]
[1723528278382,19.5028,146.14,146.09,17.1121]
[1723528278811,19.5028,146.14,146.09,23.9568]
[1723528279809,19.5028,146.14,146.1,6.8445]
[1723528279983,19.5028,146.14,146.09,23.957]
[1723528280595,19.5028,146.14,146.1,6.8445]
[1723528281017,12.66,146.14,146.1,6.8445]
[1723528282182,19.5027,146.14,146.1,6.8445]
[1723528282505,19.5027,146.14,146.09,23.9571]
[1723528283284,12.66,146.14,146.09,17.1121]
[1723528283797,19.5028,146.14,146.09,23.9571]
[1723528284413,6.8432,146.13,146.09,23.9571]
[1723528284614,6.8432,146.13,146.09,17.1121]
[1723528286094,19.5028,146.14,146.09,23.957]
[1723528286418,12.66,146.14,146.09,17.1121]
[1723528286911,12.66,146.14,146.1,6.8445]
[1723528287118,19.5028,146.14,146.1,6.8445]
[1723528287822,18.29677985,146.17,146.09,17.1121]
[1723528287823,12.66,146.12,146.09,17.1121]
[1723528288118,19.5037,146.12,146.07,6.8459]
[1723528288617,12.66,146.12,146.08,6.8454]
[1723528289415,12.66,146.12,146.09,6.8448]
[1723528290295,12.66,146.14,146.1,6.8444]
[1723528290490,20.0,146.13,146.11,6.844]
[1723528290691,12.66,146.14,146.11,6.844]
[1723528291913,12.66,146.14,146.1,23.9554]
[1723528293133,22.2636,146.17,146.1,17.1109]
[1723528293423,20.0,146.16,146.1,17.1109]
[1723528293605,20.0,146.16,146.12,6.8436]
[1723528293788,26.8418,146.16,146.12,6.8436]
[1723528295611,20.0,146.16,146.12,6.8436]
[1723528296007,15.4222,146.17,146.13,17.1078]
[1723528296212,12.66,146.17,146.14,6.8426]
[1723528297827,12.66,146.17,146.1,40.199]
[1723528298545,12.66,146.15,146.11,6.8438]
[1723528300126,12.66,146.15,146.12,6.8436]
[1723528300733,12.66,146.15,146.11,6.844]
[1723528301439,12.66,146.15,146.12,6.8436]
[1723528306910,1.65626005,146.14,146.1,17.1109]
[1723528307310,1.65626005,146.14,146.11,6.8441]
[1723528308937,12.66,146.15,146.12,6.8434]
[1723528309612,6.8409,146.18,146.13,6.8431]
[1723528309823,32.66,146.17,146.13,6.8431]
[1723528312526,39.5014,146.17,146.13,6.8431]
[1723528315638,20.0,146.17,146.14,6.8426]
[1723528317027,20.0,146.17,146.13,6.8431]
[1723528317230,12.66,146.16,146.12,23.9518]
[1723528318124,12.66,146.16,146.13,6.843]
[1723528318728,20.0,146.17,146.14,6.8426]
[1723528320353,7.6703583,146.2,146.15,6.8421]
[1723528320652,0.8299583,146.2,146.16,6.8417]
[1723528320837,0.8299583,146.2,146.17,6.8412]
[1723528321656,0.8299583,146.2,146.19,6.8404]
[1723528321948,0.8299583,146.2,146.18,23.9419]
[1723528322330,0.8299583,146.2,146.16,6.5582]
[1723528322331,0.8299583,146.2,146.17,6.96639]
[1723528322523,0.8299583,146.2,146.18,6.8407]
[1723528323223,0.8299583,146.2,146.19,6.8404]
[1723528323562,0.8299583,146.2,146.19,6.96589]
[1723528323762,0.8299583,146.2,146.19,7.09138]
[1723528324069,0.8299583,146.2,146.19,7.34236]
[1723528324224,0.8299583,146.2,146.19,52.34236]
[1723528324420,0.8299583,146.2,146.19,69.46272548]
[1723528324845,0.8299583,146.2,146.19,68.09506]
[1723528325250,16.324,146.34,146.25,17.093]
[1723528325459,16.324,146.34,146.26,6.837]
[1723528325460,19.4947,146.32,146.26,6.837]
[1723528325758,12.66,146.3,146.22,17.0973]
[1723528327650,12.66,146.29,146.25,6.8375]
[1723528328641,12.66,146.29,146.26,6.837]
[1723528329755,6.8344,146.32,146.27,6.8364]
[1723528329944,12.66,146.3,146.27,6.8364]
[1723528330255,12.66,146.3,146.23,0.25098]
[1723528330256,12.66,146.28,146.23,0.12549]
[1723528330464,12.66,146.28,146.23,6.8384]
[1723528330634,12.66,146.28,146.24,6.838]
[1723528331137,6.8356,146.3,146.24,6.838]
[1723528331467,12.66,146.28,146.24,6.838]
[1723528331963,12.66,146.26,146.23,17.0955]
[1723528333033,12.66,146.28,146.24,6.8377]
[1723528334074,35.0369,146.29,146.23,17.0955]
[1723528334276,35.0369,146.29,146.25,6.8375]
[1723528334565,20.0,146.29,146.25,17.093]
[1723528334769,12.66,146.3,146.25,17.093]
[1723528334948,28.1991,146.33,146.29,6.8357]
[1723528335147,28.1991,146.33,146.27,17.0907]
[1723528335557,35.0329,146.33,146.28,6.836]
[1723528336375,28.1991,146.33,146.29,6.8357]
[1723528336543,20.0,146.32,146.29,6.8357]
[1723528336744,15.5391,146.33,146.3,6.8352]
[1723528336945,28.1991,146.33,146.29,6.8356]
[1723528337158,0.8299583,146.35,146.31,6.8347]
[1723528337377,0.8299583,146.35,146.33,0.12549]
[1723528337537,0.8299583,146.35,146.34,6.8334]
[1723528337738,0.8299583,146.35,146.34,7.20987]
[1723528338238,0.8299583,146.35,146.34,8.45081676]
[1723528338438,0.8299583,146.35,146.34,7.33536]
[1723528338655,0.8299583,146.35,146.34,6.95889]
[1723528338862,0.8299583,146.35,146.34,6.8334]
[1723528339038,0.8299583,146.35,146.3,17.088]
[1723528339238,12.66,146.34,146.3,23.9231]
[1723528339440,12.66,146.32,146.27,6.8365]
[1723528339848,12.66,146.32,146.28,6.8361]
[1723528340460,19.4945,146.32,146.26,23.9285]
[1723528340666,12.66,146.3,146.26,23.9285]
[1723528340873,6.8348,146.31,146.23,17.096]
[1723528340874,12.66,146.28,146.23,17.096]
[1723528341348,12.66,146.28,146.25,6.8375]
[1723528341668,12.66,146.28,146.23,23.9345]
[1723528341669,19.4962,146.28,146.23,23.9345]
[1723528341881,31.47,146.28,146.23,17.096]
[1723528342760,38.3062,146.28,146.23,23.9344]
[1723528343265,38.3062,146.28,146.23,17.096]
[1723528343266,31.47,146.28,146.23,17.096]
[1723528343478,31.47,146.26,146.18,15.3007]
[1723528343639,31.47,146.26,146.21,17.0976]
[1723528343640,38.3075,146.26,146.21,17.0976]
[1723528344369,31.47,146.24,146.21,17.0976]
[1723528344738,38.308,146.24,146.19,6.8403]
[1723528345139,6.8395,146.21,146.17,17.1022]
[1723528345374,1.65626005,146.23,146.13,23.649]
[1723528345375,33.12626005,146.2,146.13,23.649]
[1723528345540,31.47,146.18,146.13,17.1071]
[1723528346044,31.47,146.2,146.15,17.1046]
[1723528346346,31.47,146.22,146.15,17.1046]
[1723528346553,31.47,146.22,146.17,6.8412]
[1723528346863,20.0,146.21,146.17,6.8412]
[1723528347164,20.0,146.21,146.16,6.8417]
[1723528347481,38.31,146.2,146.15,23.9467]
[1723528347665,31.47,146.2,146.16,6.8417]
[1723528348252,31.47,146.2,146.15,23.9468]
[1723528348253,38.3099,146.2,146.15,23.9468]
[1723528348643,6.8404,146.19,146.15,17.1046]
[1723528348848,6.8404,146.19,146.13,6.8431]
[1723528348849,38.3108,146.18,146.13,6.8431]
[1723528349075,1.65626005,146.17,146.13,6.8431]
[1723528349263,31.47,146.16,146.09,23.6545]
[1723528350977,20.0,146.15,146.11,6.8438]
[1723528352047,20.0,146.15,146.12,6.8436]
[1723528352449,20.0,146.15,146.11,6.844]
[1723528352650,47.5781,146.16,146.09,17.1126]
[1723528352875,20.0,146.15,146.09,17.1126]
[1723528353980,20.0,146.15,146.08,1.74521813]
[1723528353981,20.0,146.15,146.13,6.8431]
[1723528354352,20.0,146.15,146.12,23.9527]
[1723528354655,20.0,146.15,146.13,6.8431]
[1723528355478,38.3109,146.18,146.14,6.8427]
[1723528356062,31.47,146.18,146.14,6.8427]
[1723528356693,20.0,146.17,146.14,6.8427]
[1723528356855,20.0,146.17,146.15,6.8422]
[1723528357054,20.0,146.17,146.12,17.1091]
[1723528357255,20.0,146.17,146.13,0.12549]
[1723528357976,20.0,146.17,146.14,6.8426]
[1723528358363,20.0,146.18,146.15,6.8422]
[1723528358756,20.0,146.19,146.16,6.8418]
[1723528359373,20.0,146.19,146.15,6.8421]
[1723528360777,33.12626005,146.18,146.14,17.1058]
[1723528361760,38.3109,146.18,146.14,17.1058]
[1723528362077,38.3109,146.18,146.14,23.9485]
[1723528362584,20.0,146.19,146.15,6.8421]
[1723528363087,20.0,146.19,146.14,17.1058]
[1723528363293,31.47,146.18,146.14,17.1058]
[1723528363461,33.12626005,146.18,146.14,17.1058]
[1723528363657,6.8417,146.17,146.12,6.8436]
[1723528363976,38.312,146.16,146.11,23.9536]
[1723528364179,38.312,146.16,146.06,15.7972]
[1723528364180,38.3128,146.14,146.09,6.845]
[1723528364395,6.8433,146.13,146.08,17.1136]
[1723528364572,39.96906005,146.14,146.09,6.845]
[1723528365486,56.43026005,146.14,146.09,6.845]
[1723528365663,54.774,146.14,146.09,6.845]
[1723528366303,1.65626005,146.13,146.09,6.845]
[1723528366791,54.774,146.14,146.1,6.8445]
[1723528367089,1.65626005,146.13,146.09,6.845]
[1723528367477,54.774,146.14,146.09,6.845]
[1723528367684,54.774,146.14,146.08,17.1136]
[1723528367856,54.774,146.14,146.09,6.8447]
[1723528368059,6.8433,146.13,146.08,17.1136]
[1723528368260,6.8433,146.13,146.08,23.959]
[1723528368676,6.8433,146.13,146.09,6.845]
[1723528369362,54.774,146.14,146.09,6.845]
[1723528369984,54.774,146.14,146.1,6.8446]
[1723528370378,47.9312,146.14,146.1,6.8446]
[1723528370605,47.9312,146.14,146.11,6.8439]
[1723528372420,47.9312,146.14,146.1,6.8446]
[1723528373207,54.774,146.14,146.09,6.8449]
[1723528375001,47.9312,146.14,146.1,6.8444]
[1723528375395,47.9312,146.14,146.11,6.8441]
[1723528378114,47.9312,146.14,146.1,23.9553]
[1723528381075,54.774,146.14,146.1,23.9553]
[1723528381515,47.9312,146.14,146.1,23.9553]
[1723528381687,47.9312,146.14,146.11,6.844]
[1723528381890,16.4612,146.14,146.12,6.8435]
[1723528382305,31.47,146.16,146.12,6.8435]
[1723528382493,20.0,146.15,146.13,6.8429]
[1723528383102,20.0,146.17,146.13,6.8429]
[1723528383925,54.1597,146.18,146.13,6.8429]
[1723528384603,47.3185,146.18,146.09,17.1123]
[1723528384793,38.3128,146.14,146.1,6.8442]
[1723528385680,31.47,146.14,146.1,6.8442]
[1723528386108,31.47,146.14,146.09,17.1123]
[1723528386281,38.3119,146.16,146.09,17.1123]
[1723528386815,20.0,146.15,146.09,17.1123]
[1723528387506,20.0,146.15,146.1,1.36869796]
[1723528387815,20.0,146.15,146.12,6.8436]
[1723528388190,47.3185,146.18,146.12,6.8436]
[1723528388394,26.8414,146.17,146.12,6.8436]
[1723528388786,20.0,146.17,146.13,6.8429]
[1723528389214,31.47,146.16,146.11,23.9535]
[1723528389917,6.8424,146.15,146.1,6.8442]
[1723528391897,6.843,146.14,146.09,6.8449]
[1723528392088,6.843,146.14,146.08,17.1134]
[1723528392089,31.47,146.14,146.08,17.1134]
[1723528392694,31.47,146.12,146.08,23.9585]
[1723528393085,31.47,146.14,146.1,6.8445]
[1723528394120,38.3128,146.14,146.1,6.8445]
[1723528394504,31.47,146.12,146.05,27.19332313]
[1723528394696,15.7107,146.13,146.05,27.19332313]
[1723528394697,31.47,146.1,146.08,6.8454]
[1723528394895,31.47,146.12,146.08,6.8454]
[1723528395115,31.47,146.12,146.09,6.8449]
[1723528395921,15.7107,146.13,146.1,6.8444]
[1723528396150,15.7107,146.13,146.09,23.9571]
[1723528398425,38.315,146.1,146.06,17.1158]
[1723528399531,31.47,146.1,146.06,23.9621]
[1723528400096,38.3147,146.1,146.06,17.1158]
[1723528400723,38.3147,146.1,146.06,23.9621]
[1723528401727,31.47,146.1,146.06,23.9621]
[1723528402634,38.3146,146.1,146.06,23.9621]
[1723528403501,31.47,146.1,146.06,23.9621]
[1723528403701,31.47,146.1,146.07,6.8459]
[1723528404114,31.47,146.1,146.08,6.8454]
[1723528404432,31.47,146.12,146.08,6.8454]
[1723528404731,20.0,146.11,146.08,6.8454]
[1723528405239,20.0,146.11,146.09,6.8449]
[1723528405420,20.0,146.11,146.08,6.8455]
[1723528407331,1.65626005,146.1,146.06,23.9622]
[1723528407558,38.3146,146.1,146.06,23.9622]
[1723528408761,31.47,146.08,146.02,6.848]
[1723528408932,31.47,146.06,146.02,6.848]
[1723528409264,1.65626005,146.05,146.02,6.848]
[1723528409552,1.65626005,146.04,146.01,6.8487]
[1723528410730,1.65626005,146.05,146.01,6.8487]
[1723528411042,31.47,146.04,146.01,6.8487]
[1723528413624,1.65626005,146.03,146.0,17.1229]
[1723528413953,38.3174,146.04,146.0,17.1229]
[1723528414323,31.47,146.02,145.98,6.8501]
[1723528414523,1.65626005,146.01,145.98,6.8501]
[1723528414740,31.47,146.02,145.99,6.8496]
[1723528414944,31.47,146.02,145.97,17.1264]
[1723528415137,31.47,146.04,146.0,6.8492]
[1723528415333,20.0,146.03,146.0,6.8492]
[1723528416126,31.47,146.06,146.01,17.1214]
[1723528416322,26.8469,146.05,146.01,23.9699]
[1723528416951,26.8469,146.05,146.01,17.1214]
[1723528417151,31.47,146.04,146.01,17.1214]
[1723528417666,31.47,146.04,146.0,6.8492]
[1723528417667,38.3174,146.04,146.0,6.8492]
[1723528418571,38.3174,146.04,145.99,6.8497]
[1723528418868,6.8479,146.03,145.99,6.8497]
[1723528419037,38.3175,146.04,145.99,6.8497]
[1723528420959,38.3185,146.02,145.98,23.9751]
[1723528421134,1.65626005,146.01,145.98,23.9751]
[1723528422762,31.47,146.02,145.99,6.8494]
[1723528423135,31.47,146.02,145.98,23.9751]
[1723528424531,31.47,146.02,145.98,17.125]
[1723528424532,38.3188,146.02,145.98,17.125]
[1723528424737,21.65626005,146.01,145.97,6.8506]
[1723528424958,31.47,146.0,145.96,6.851]
[1723528425157,31.47,145.98,145.92,10.09582958]
[1723528425379,31.47,145.93,145.9,10.09582958]
[1723528425543,31.47,145.95,145.93,6.8522]
[1723528425860,20.0,145.95,145.93,6.8522]
[1723528426205,15.4639,145.96,145.94,6.852]
[1723528426741,15.4639,145.96,145.93,23.9831]
[1723528428877,15.4639,145.96,145.94,6.852]
[1723528429366,15.4639,145.96,145.93,23.9832]
[1723528431165,47.4682,145.99,145.95,6.8513]
[1723528431360,6.8502,145.98,145.93,23.9828]
[1723528431545,54.318,145.99,145.94,6.852]
[1723528432165,47.4682,145.99,145.95,6.8514]
[1723528432469,15.9982,145.99,145.96,6.8511]
[1723528432671,15.9982,145.99,145.94,6.8517]
[1723528432858,22.848,145.99,145.94,6.8517]
[1723528433260,20.0,145.98,145.94,6.8517]
[1723528434777,20.0,145.98,145.95,6.8516]